[Event "Hungarian Youth-ch I 2024"]
[Site "Szolnok"]
[Date "2024.04.04"]
[Round "6.5"]
[White "Herpai, Jozsef Matyas"]
[Black "Barna, Peter"]
[Result "1-0"]
[ECO "C44"]
[WhiteElo "2037"]
[BlackElo "1702"]
[Annotator "RC"]
[PlyCount "37"]
[EventDate "2024.03.31"]
[EventType "swiss"]
[EventCountry "HUN"]
[SourceTitle "playchess.com"]
[Source "ChessBase"]
[SourceQuality "1"]
[TimeControl "5400+30"]

1. e4 {[%emt 0:00:04]} e5 {[%emt 0:00:04]} 2. d4 {[%emt 0:00:08]} exd4 {[%emt 0:00:13]} 3. Nf3 {[%emt 0:00:04]} Nc6 {[%emt 0:05:28]} 4. Nxd4 {[%emt 0:00:10]} Qf6 {[%emt 0:00:16]} 5. Nf3 {[%emt 0:00:18]} Bc5 {[%emt 0:03:55]} 6. Be2 {[%emt 0:04:26]} Nge7 {[%emt 0:02:53]} 7. O-O {[%emt 0:01:24]} O-O {[%emt 0:00:25]} 8. Nc3 {[%emt 0:01:08]} h6 {[%emt 0:00:08]} 9. Ne1 {[%emt 0:19:17]} a6 {[%emt 0:01:39]} 10. Nd3 {[%emt 0:01:28]} Ba7 {[%emt 0:02:03]} 11. Nf4 {[%emt 0:13:44]} Qd4 {[%emt 0:15:43]} 12. Bd3 {[%emt 0:09:07]} Qf6 {[%emt 0:20:29]} 13. Nh5 {[%emt 0:09:14]} Qe5 {[%emt 0:14:23]} 14. Bf4 {[%emt 0:01:14]} Qa5 {[%emt 0:00:27]} 15. Nd5 {[%emt 0:06:38]} Nxd5 {[%emt 0:03:48]} 16. exd5 {[%emt 0:00:10]} g5 {[%emt 0:10:15]} 17. Bd2 {[%emt 0:02:31]} Qa4 {[%emt 0:03:57]} 18. dxc6 {[%emt 0:00:36]} dxc6 {[%emt 0:00:34]} 19. Nf6+ {[%emt 0:00:09]} 1-0

[Event "Hungarian Youth-ch I 2024"]
[Site "Szolnok"]
[Date "2024.04.04"]
[Round "6.6"]
[White "Kolimar, Kristof Pal"]
[Black "Turcsanyi, Vince Gergo"]
[Result "0-1"]
[ECO "B12"]
[WhiteElo "2282"]
[BlackElo "2247"]
[Annotator "RC"]
[PlyCount "212"]
[EventDate "2024.03.31"]
[EventType "swiss"]
[EventCountry "HUN"]
[SourceTitle "playchess.com"]
[Source "ChessBase"]
[SourceQuality "1"]
[TimeControl "5400+30"]

1. e4 {[%emt 0:00:08]} c6 {[%emt 0:00:43]} 2. d4 {[%emt 0:00:04]} d5 {[%emt 0:00:08]} 3. e5 {[%emt 0:00:03]} c5 {[%emt 0:00:50]} 4. Nf3 {[%emt 0:00:05]} cxd4 {[%emt 0:00:05]} 5. Nxd4 {[%emt 0:00:04]} Nc6 6. c4 {[%emt 0:01:19]} e6 {[%emt 0:05:36]} 7. Nc3 {[%emt 0:00:05]} a6 {[%emt 0:06:21]} 8. cxd5 {[%emt 0:08:35]} exd5 {[%emt 0:00:38]} 9. Nxc6 {[%emt 0:00:54]} bxc6 {[%emt 0:00:09]} 10. Bd3 {[%emt 0:00:14]} Ne7 {[%emt 0:08:30]} 11. O-O {[%emt 0:10:39]} Ng6 {[%emt 0:01:06]} 12. Qh5 {[%emt 0:04:51]} Qh4 {[%emt 0:09:21]} 13. Qxh4 {[%emt 0:11:47]} Nxh4 {[%emt 0:00:27]} 14. Be3 {[%emt 0:02:13]} Bf5 {[%emt 0:10:02]} 15. Be2 {[%emt 0:05:14]} Be6 {[%emt 0:04:42]} 16. Na4 {[%emt 0:03:59]} g6 {[%emt 0:03:00]} 17. Bc5 {[%emt 0:09:32]} Bg7 {[%emt 0:00:32]} 18. f4 {[%emt 0:02:05]} f6 {[%emt 0:13:48]} 19. Nb6 {[%emt 0:08:31]} Rb8 {[%emt 0:01:19]} 20. Bxa6 {[%emt 0:00:45]} fxe5 {[%emt 0:02:44]} 21. fxe5 {[%emt 0:00:26]} Nf5 {[%emt 0:01:27]} 22. Kh1 {[%emt 0:03:28]} Kd8 {[%emt 0:04:32]} 23. g4 {[%emt 0:01:49]} Nh6 {[%emt 0:03:25]} 24. h3 {[%emt 0:04:09]} Nf7 {[%emt 0:02:22]} 25. Rae1 {[%emt 0:04:59]} h5 {[%emt 0:04:33]} 26. Rf6 {[%emt 0:15:18]} Bxf6 {[%emt 0:02:33]} 27. exf6 {[%emt 0:00:01]} Ng5 {[%emt 0:00:43]} 28. f7 {[%emt 0:01:53]} Bxf7 {[%emt 0:00:55]} 29. Re7 {[%emt 0:01:18]} Rxb6 {[%emt 0:00:25]} 30. Ra7 {[%emt 0:00:15]} Rxa6 {[%emt 0:01:36]} 31. Rxa6 {[%emt 0:00:01]} Kd7 {[%emt 0:00:45]} 32. Ra7+ {[%emt 0:00:33]} Ke6 {[%emt 0:00:05]} 33. Re7+ {[%emt 0:00:01]} Kf6 {[%emt 0:00:06]} 34. Rc7 {[%emt 0:01:26]} Ne6 {[%emt 0:00:56]} 35. Rxc6 {[%emt 0:00:03]} Ke5 {[%emt 0:00:14]} 36. Bd6+ {[%emt 0:00:58]} Ke4 {[%emt 0:00:07]} 37. Kg2 {[%emt 0:00:41]} hxg4 {[%emt 0:00:56]} 38. hxg4 {[%emt 0:00:01]} d4 {[%emt 0:00:13]} 39. Rc1 {[%emt 0:00:11]} d3 {[%emt 0:02:13]} 40. Re1+ {[%emt 0:00:46]} Kd5 {[%emt 0:00:13]} 41. Bg3 {[%emt 0:00:12]} Rc8 {[%emt 0:01:06]} 42. Rd1 {[%emt 0:00:29]} Rc2+ {[%emt 0:01:09]} 43. Kf3 {[%emt 0:00:01]} Kd4 {[%emt 0:03:05]} 44. Bf2+ {[%emt 0:00:01]} Kc4 {[%emt 0:00:07]} 45. b3+ {[%emt 0:00:00]} Kc3 {[%emt 0:00:21]} 46. Be1+ {[%emt 0:00:01]} d2 {[%emt 0:01:30]} 47. Rxd2 {[%emt 0:00:02]} Rxd2 {[%emt 0:02:07]} 48. Ke3 {[%emt 0:00:05]} Kb2 {[%emt 0:00:38]} 49. Bxd2 {[%emt 0:00:42]} Kxa2 {[%emt 0:00:06]} 50. b4 {[%emt 0:01:11]} Kb3 {[%emt 0:00:28]} 51. Ke4 {[%emt 0:01:17]} Kc4 {[%emt 0:00:50]} 52. Ke5 {[%emt 0:00:42]} Nc7 {[%emt 0:00:18]} 53. Kf6 {[%emt 0:00:37]} Be8 {[%emt 0:00:04]} 54. Ke7 {[%emt 0:01:01]} Ba4 {[%emt 0:00:25]} 55. g5 {[%emt 0:01:41]} Nd5+ {[%emt 0:00:30]} 56. Kf7 {[%emt 0:00:21]} Bc2 {[%emt 0:00:05]} 57. Ke6 {[%emt 0:00:20]} Nxb4 {[%emt 0:00:17]} 58. Kf6 {[%emt 0:00:18]} Nc6 {[%emt 0:00:23]} 59. Bf4 {[%emt 0:00:24]} Kd5 {[%emt 0:00:23]} 60. Bg3 {[%emt 0:00:39]} Bf5 {[%emt 0:00:21]} 61. Bf4 {[%emt 0:00:19]} Ke4 {[%emt 0:00:30]} 62. Bc1 {[%emt 0:00:23]} Nb4 {[%emt 0:00:19]} 63. Kf7 {[%emt 0:01:12]} Kf3 {[%emt 0:00:36]} 64. Bd2 {[%emt 0:00:10]} Nd3 {[%emt 0:00:38]} 65. Kg7 {[%emt 0:00:29]} Kg4 {[%emt 0:00:08]} 66. Be3 {[%emt 0:00:22]} Ne5 {[%emt 0:01:02]} 67. Kf6 {[%emt 0:00:25]} Nc4 {[%emt 0:00:08]} 68. Bc1 {[%emt 0:00:03]} Nd6 {[%emt 0:00:09]} 69. Kg7 {[%emt 0:00:11]} Kh5 {[%emt 0:00:19]} 70. Kf6 {[%emt 0:00:22]} Ne4+ {[%emt 0:00:05]} 71. Ke5 {[%emt 0:00:19]} Kg4 {[%emt 0:00:10]} 72. Be3 {[%emt 0:00:10]} Nxg5 {[%emt 0:00:09]} 73. Kf6 {[%emt 0:00:02]} Nf3 {[%emt 0:01:04]} 74. Kg7 {[%emt 0:00:08]} Be4 {[%emt 0:00:33]} 75. Kf6 {[%emt 0:00:03]} Bd3 {[%emt 0:00:52]} 76. Bc1 {[%emt 0:00:07]} g5 {[%emt 0:00:26]} 77. Be3 {[%emt 0:00:21]} Kh4 {[%emt 0:00:22]} 78. Bxg5+ {[%emt 0:00:38]} Nxg5 {[%emt 0:00:10]} 79. Ke5 {[%emt 0:00:16]} Kg4 {[%emt 0:00:12]} 80. Kd4 {[%emt 0:00:01]} Bf5 {[%emt 0:00:10]} 81. Kc3 {[%emt 0:00:03]} Kf4 {[%emt 0:00:07]} 82. Kb2 {[%emt 0:00:03]} Ke3 {[%emt 0:00:04]} 83. Ka1 {[%emt 0:00:10]} Kd4 {[%emt 0:00:20]} 84. Kb2 {[%emt 0:00:02]} Ne6 {[%emt 0:00:07]} 85. Ka1 {[%emt 0:00:05]} Nc5 {[%emt 0:00:08]} 86. Kb2 {[%emt 0:00:01]} Bg6 {[%emt 0:00:33]} 87. Kc1 {[%emt 0:00:29]} Ke3 {[%emt 0:00:22]} 88. Kb2 {[%emt 0:00:56]} Kd2 {[%emt 0:00:18]} 89. Ka1 {[%emt 0:00:03]} Kc3 {[%emt 0:00:06]} 90. Ka2 {[%emt 0:00:01]} Nb3 {[%emt 0:00:17]} 91. Ka3 {[%emt 0:00:01]} Bb1 {[%emt 0:00:21]} 92. Ka4 {[%emt 0:00:01]} Nd4 {[%emt 0:00:15]} 93. Ka3 {[%emt 0:00:27]} Nb5+ {[%emt 0:00:07]} 94. Ka4 {[%emt 0:00:01]} Kc4 {[%emt 0:00:08]} 95. Ka5 {[%emt 0:00:02]} Kc5 {[%emt 0:00:08]} 96. Ka6 {[%emt 0:00:02]} Nd6 {[%emt 0:00:37]} 97. Ka5 {[%emt 0:00:06]} Bc2 {[%emt 0:00:07]} 98. Ka6 {[%emt 0:00:02]} Bb3 {[%emt 0:00:16]} 99. Ka5 {[%emt 0:00:10]} Nb7+ {[%emt 0:00:06]} 100. Ka6 {[%emt 0:00:01]} Kc6 {[%emt 0:00:07]} 101. Ka7 {[%emt 0:00:00]} Kc7 {[%emt 0:00:20]} 102. Ka6 {[%emt 0:00:13]} Bc4+ {[%emt 0:00:07]} 103. Ka7 {[%emt 0:00:01]} Nd6 {[%emt 0:00:26]} 104. Ka8 {[%emt 0:00:04]} Bb5 {[%emt 0:00:06]} 105. Ka7 {[%emt 0:00:04]} Nc8+ {[%emt 0:00:05]} 106. Ka8 {[%emt 0:00:04]} Bc6# {[%emt 0:00:04]} 0-1

[Event "Hungarian Youth-ch I 2024"]
[Site "Szolnok"]
[Date "2024.04.04"]
[Round "6.7"]
[White "Apro, Barnabas"]
[Black "Csernyik, Mark"]
[Result "0-1"]
[ECO "B04"]
[WhiteElo "2026"]
[BlackElo "2016"]
[Annotator "NA RC"]
[PlyCount "106"]
[EventDate "2024.03.31"]
[EventType "swiss"]
[EventCountry "HUN"]
[SourceTitle "playchess.com"]
[Source "ChessBase"]
[SourceQuality "1"]
[TimeControl "5400+30"]

1. e4 {[%emt 0:00:05]} Nf6 {[%emt 0:00:13]} 2. e5 {[%emt 0:00:19]} Nd5 {[%emt 0:00:09]} 3. d4 {[%emt 0:00:07]} d6 {[%emt 0:00:23]} 4. Nf3 {[%emt 0:00:13]} dxe5 {[%emt 0:00:16]} 5. Nxe5 {[%emt 0:00:54]} c6 {[%emt 0:00:30]} 6. c3 {[%emt 0:03:32]} Bf5 {[%emt 0:03:46]} 7. Qf3 {[%emt 0:04:38]} Bg6 {[%emt 0:01:29]} 8. Bd3 {[%emt 0:03:02]} Nf6 {[%emt 0:03:41]} 9. Nxg6 {[%emt 0:06:04]} hxg6 {[%emt 0:00:11]} 10. Nd2 {[%emt 0:04:10]} e6 {[%emt 0:00:25]} 11. Nc4 {[%emt 0:01:30]} Qd5 {[%emt 0:06:43]} 12. Qxd5 {[%emt 0:10:05]} Nxd5 {[%emt 0:02:06]} 13. Bd2 {[%emt 0:03:10]} c5 {[%emt 0:07:42]} 14. dxc5 {[%emt 0:14:10]} Bxc5 {[%emt 0:00:40]} 15. b4 {[%emt 0:00:23]} Be7 {[%emt 0:01:17]} 16. Ne3 {[%emt 0:00:45]} Nxe3 {[%emt 0:05:50]} 17. Bxe3 {[%emt 0:00:08]} Bf6 {[%emt 0:00:36]} 18. Rc1 {[%emt 0:02:16]} Nc6 {[%emt 0:06:21]} 19. a3 {[%emt 0:04:30]} O-O {[%emt 0:03:29]} 20. O-O {[%emt 0:04:26]} Rfd8 {[%emt 0:02:23]} 21. Be4 {[%emt 0:00:42]} Rd7 {[%emt 0:01:01]} 22. b5 {[%emt 0:02:48]} Na5 {[%emt 0:03:37]} 23. Rfd1 {[%emt 0:01:49]} Rc7 {[%emt 0:10:40]} 24. Bxa7 {[%emt 0:04:35]} Rc4 {[%emt 0:02:26]} 25. Bd3 {[%emt 0:00:22]} Rxa7 {[%emt 0:00:17]} 26. b6 {[%emt 0:00:52]} Ra8 {[%emt 0:06:16]} 27. Bxc4 {[%emt 0:00:41]} Nxc4 {[%emt 0:00:05]} 28. Rd7 {[%emt 0:00:59]} Nxb6 {[%emt 0:06:25]} 29. Rxb7 {[%emt 0:00:07]} Nc4 {[%emt 0:01:52]} 30. Rb4 {[%emt 0:06:55]} Nxa3 {[%emt 0:01:13]} 31. g3 {[%emt 0:00:05]} Rc8 {[%emt 0:01:13]} 32. c4 {[%emt 0:00:16]} Be7 {[%emt 0:00:22]} 33. Ra4 {[%emt 0:03:38]} Bc5 {[%emt 0:01:30]} 34. Ra1 {[%emt 0:03:51]} Nxc4 {[%emt 0:01:46]} 35. Ra8 {[%emt 0:03:20]} Rxa8 {[%emt 0:00:17]} 36. Rxa8+ {[%emt 0:00:06]} Bf8 {[%emt 0:00:05]} 37. Kg2 {[%emt 0:01:13]} Nb6 {[%emt 0:00:51]} 38. Rb8 {[%emt 0:00:12]} Nd5 {[%emt 0:00:06]} 39. Ra8 {[%emt 0:00:36]} g5 {[%emt 0:00:13]} 40. Re8 {[%emt 0:00:44]} g6 {[%emt 0:00:11]} 41. Ra8 {[%emt 0:00:54]} Kg7 {[%emt 0:00:07]} 42. Ra7 {[%emt 0:00:20]} Bc5 {[%emt 0:00:17]} 43. Rb7 {[%emt 0:00:20]} g4 {[%emt 0:00:34]} 44. Rb5 {[%emt 0:00:52]} Bd4 {[%emt 0:00:28]} 45. Ra5 {[%emt 0:00:11]} Nf6 {[%emt 0:00:41]} 46. Ra4 {[%emt 0:00:34]} e5 {[%emt 0:00:07]} 47. Ra5 {[%emt 0:00:43]} Ne4 {[%emt 0:00:49]} 48. f4 {[%emt 0:00:40]} gxf3+ {[%emt 0:00:11]} 49. Kxf3 {[%emt 0:00:05]} Nc3 {[%emt 0:00:18]} 50. Ra3 {[%emt 0:00:27]} f5 {[%emt 0:00:49]} 51. g4 {[%emt 0:00:41]} e4+ {[%emt 0:00:25]} 52. Kf4 {[%emt 0:00:12]} Ne2+ {[%emt 0:00:27]} 53. Kg5 {[%emt 0:00:11]} Bf6# {[%emt 0:00:07]} 0-1

[Event "Hungarian Youth-ch I 2024"]
[Site "Szolnok"]
[Date "2024.04.04"]
[Round "6.8"]
[White "Bodrogi, Bendeguz"]
[Black "Szegedy, Matyas"]
[Result "0-1"]
[ECO "A49"]
[WhiteElo "2316"]
[BlackElo "2177"]
[Annotator "RC"]
[PlyCount "78"]
[EventDate "2024.03.31"]
[EventType "swiss"]
[EventCountry "HUN"]
[SourceTitle "playchess.com"]
[Source "ChessBase"]
[SourceQuality "1"]
[TimeControl "5400+30"]

1. d4 {[%emt 0:00:23]} Nf6 {[%emt 0:00:44]} 2. Nf3 {[%emt 0:00:15]} g6 {[%emt 0:00:34]} 3. g3 {[%emt 0:00:17]} b6 {[%emt 0:00:44]} 4. Bg2 {[%emt 0:01:20]} Bb7 {[%emt 0:00:10]} 5. b3 {[%emt 0:04:52]} Bg7 {[%emt 0:00:40]} 6. Bb2 {[%emt 0:00:05]} O-O {[%emt 0:00:43]} 7. O-O {[%emt 0:01:07]} c5 {[%emt 0:02:57]} 8. c4 {[%emt 0:14:51]} cxd4 {[%emt 0:06:45]} 9. Qxd4 {[%emt 0:03:42]} d6 {[%emt 0:03:01]} 10. Nc3 {[%emt 0:04:23]} Ne4 {[%emt 0:13:09]} 11. Qe3 {[%emt 0:02:16]} Nxc3 {[%emt 0:00:21]} 12. Bxc3 {[%emt 0:00:06]} Bxc3 {[%emt 0:00:35]} 13. Qxc3 {[%emt 0:00:06]} Nd7 {[%emt 0:00:05]} 14. Rfe1 {[%emt 0:07:50]} Nf6 {[%emt 0:05:28]} 15. Rad1 {[%emt 0:04:32]} Qc7 {[%emt 0:23:00]} 16. Qd4 {[%emt 0:04:41]} Rfd8 {[%emt 0:01:57]} 17. e4 {[%emt 0:04:30]} e5 {[%emt 0:00:31]} 18. Qd3 {[%emt 0:01:21]} Bc6 {[%emt 0:03:03]} 19. Nd2 {[%emt 0:03:29]} Qb7 {[%emt 0:01:30]} 20. Nb1 {[%emt 0:09:28]} b5 {[%emt 0:06:06]} 21. c5 {[%emt 0:00:36]} dxc5 {[%emt 0:03:08]} 22. Qxd8+ {[%emt 0:00:10]} Rxd8 {[%emt 0:00:02]} 23. Rxd8+ {[%emt 0:00:13]} Kg7 {[%emt 0:00:03]} 24. Rd3 {[%emt 0:19:35]} Qa6 {[%emt 0:05:35]} 25. Rd2 {[%emt 0:01:54]} Qa5 {[%emt 0:01:00]} 26. Rc1 {[%emt 0:01:56]} Bxe4 {[%emt 0:01:21]} 27. Bxe4 {[%emt 0:00:17]} Nxe4 {[%emt 0:00:05]} 28. Re2 {[%emt 0:00:46]} f5 {[%emt 0:03:40]} 29. Kg2 {[%emt 0:02:02]} Qd8 {[%emt 0:03:27]} 30. f3 {[%emt 0:02:29]} Ng5 {[%emt 0:02:31]} 31. h4 {[%emt 0:01:20]} Qd3 {[%emt 0:01:57]} 32. Rf2 {[%emt 0:00:04]} Ne6 {[%emt 0:00:10]} 33. Re1 {[%emt 0:01:39]} e4 {[%emt 0:01:02]} 34. fxe4 {[%emt 0:00:45]} fxe4 {[%emt 0:00:03]} 35. Rfe2 {[%emt 0:01:59]} Qf3+ {[%emt 0:00:32]} 36. Kh2 {[%emt 0:00:12]} Nd4 {[%emt 0:01:11]} 37. Rxe4 {[%emt 0:01:04]} Nf5 {[%emt 0:00:27]} 38. g4 {[%emt 0:00:47]} Qf2+ {[%emt 0:00:09]} 39. Kh1 {[%emt 0:00:04]} Ng3# 0-1

[Event "Hungarian Youth-ch I 2024"]
[Site "Szolnok"]
[Date "2024.04.04"]
[Round "6.9"]
[White "Foldes, Marton Gabor"]
[Black "Megyaszai, Balazs"]
[Result "1/2-1/2"]
[ECO "B11"]
[WhiteElo "2162"]
[BlackElo "2029"]
[Annotator "RC"]
[PlyCount "63"]
[EventDate "2024.03.31"]
[EventType "swiss"]
[EventCountry "HUN"]
[SourceTitle "playchess.com"]
[Source "ChessBase"]
[SourceQuality "1"]
[TimeControl "5400+30"]

1. e4 {[%emt 0:00:02]} c6 {[%emt 0:00:33]} 2. Nc3 {[%emt 0:06:47]} d5 {[%emt 0:01:47]} 3. Nf3 {[%emt 0:00:07]} Bg4 {[%emt 0:00:07]} 4. h3 {[%emt 0:00:06]} Bxf3 {[%emt 0:00:06]} 5. Qxf3 {[%emt 0:00:03]} e6 {[%emt 0:00:10]} 6. Be2 {[%emt 0:00:25]} Bc5 {[%emt 0:00:19]} 7. O-O {[%emt 0:02:01]} Nd7 {[%emt 0:02:14]} 8. Rd1 {[%emt 0:09:05]} d4 {[%emt 0:02:41]} 9. Nb1 {[%emt 0:00:09]} Ne5 {[%emt 0:02:24]} 10. Qg3 {[%emt 0:04:02]} d3 {[%emt 0:00:50]} 11. Qxe5 {[%emt 0:13:16]} Bd4 {[%emt 0:00:49]} 12. Qg3 {[%emt 0:00:16]} dxc2 {[%emt 0:00:07]} 13. Rf1 {[%emt 0:01:04]} cxb1=Q {[%emt 0:04:36]} 14. Rxb1 {[%emt 0:00:04]} Ne7 {[%emt 0:08:15]} 15. b4 {[%emt 0:05:13]} Ng6 {[%emt 0:07:17]} 16. Kh1 {[%emt 0:02:41]} Qh4 {[%emt 0:09:12]} 17. Qxh4 {[%emt 0:06:32]} Nxh4 {[%emt 0:00:15]} 18. f4 {[%emt 0:11:35]} Ng6 {[%emt 0:04:41]} 19. b5 {[%emt 0:11:01]} c5 {[%emt 0:05:58]} 20. b6 {[%emt 0:03:07]} O-O {[%emt 0:03:25]} 21. bxa7 {[%emt 0:00:48]} Rxa7 {[%emt 0:00:20]} 22. Bc4 {[%emt 0:00:09]} Rb8 {[%emt 0:13:31]} 23. Rb5 {[%emt 0:02:11]} Kf8 {[%emt 0:07:16]} 24. d3 {[%emt 0:01:49]} Ne7 {[%emt 0:05:03]} 25. f5 {[%emt 0:05:54]} exf5 {[%emt 0:06:41]} 26. exf5 {[%emt 0:00:50]} Rd8 {[%emt 0:01:18]} 27. f6 {[%emt 0:04:04]} gxf6 {[%emt 0:05:24]} 28. Bh6+ {[%emt 0:00:24]} Kg8 {[%emt 0:00:37]} 29. Rf3 {[%emt 0:04:06]} Ng6 {[%emt 0:01:04]} 30. Be3 {[%emt 0:01:11]} Bxe3 {[%emt 0:00:55]} 31. Rxe3 {[%emt 0:00:01]} Ne5 {[%emt 0:00:14]} 32. Rxc5 {[%emt 0:02:00]} 1/2-1/2

[Event "Hungarian Youth-ch I 2024"]
[Site "Szolnok"]
[Date "2024.04.04"]
[Round "6.10"]
[White "Panda, Barnabas"]
[Black "Puskas, Mihaly"]
[Result "1-0"]
[ECO "A13"]
[WhiteElo "2066"]
[BlackElo "1978"]
[Annotator "NA RC"]
[PlyCount "63"]
[EventDate "2024.03.31"]
[EventType "swiss"]
[EventCountry "HUN"]
[SourceTitle "playchess.com"]
[Source "ChessBase"]
[SourceQuality "1"]
[TimeControl "5400+30"]

1. c4 {[%emt 0:00:10]} e6 {[%emt 0:00:15]} 2. g3 {[%emt 0:00:15]} d5 {[%emt 0:00:27]} 3. Nf3 {[%emt 0:00:29]} Nf6 {[%emt 0:00:47]} 4. b3 {[%emt 0:00:12]} c5 {[%emt 0:02:39]} 5. Bg2 {[%emt 0:02:33]} Nc6 {[%emt 0:00:49]} 6. O-O {[%emt 0:00:59]} b6 {[%emt 0:03:42]} 7. cxd5 {[%emt 0:07:01]} exd5 {[%emt 0:04:20]} 8. d4 {[%emt 0:00:41]} Bb7 {[%emt 0:02:22]} (8... Be7 $11 {should be considered.}) 9. Nc3 {[%emt 0:05:35]} Be7 {[%emt 0:02:29]} 10. Ba3 {[%emt 0:05:49]} (10. dxc5 $14 bxc5 11. Bg5) 10... O-O {[%emt 0:01:28]} 11. Rc1 $11 {[%emt 0:04:44]} Re8 {[%emt 0:15:48]} 12. Re1 {[%emt 0:07:43]} Nb4 {[%emt 0:20:21]} 13. dxc5 {[%emt 0:11:01]} Bxc5 {[%emt 0:02:06]} 14. Na4 {[%emt 0:02:58]} Ne4 {[%emt 0:13:55]} 15. Nxc5 {[%emt 0:05:32]} bxc5 {[%emt 0:01:15]} 16. Nd2 {[%emt 0:00:45]} Qa5 {[%emt 0:05:47]} 17. Bxb4 {[%emt 0:14:49]} Qxb4 {[%emt 0:05:24]} 18. Nxe4 {[%emt 0:01:31]} dxe4 {[%emt 0:00:10]} 19. Rc4 {[%emt 0:05:29]} Qb6 {[%emt 0:00:49]} 20. Qc2 {[%emt 0:00:50]} Rac8 {[%emt 0:02:11]} 21. Bxe4 {[%emt 0:03:14]} Ba6 {[%emt 0:02:02]} 22. Bxh7+ {[%emt 0:01:09]} Kf8 {[%emt 0:00:09]} 23. Rf4 {[%emt 0:02:42]} Rc6 {[%emt 0:03:54]} 24. Bd3 {[%emt 0:01:31]} Bc8 {[%emt 0:01:47]} 25. Rc1 {[%emt 0:02:30]} Bd7 {[%emt 0:02:22]} 26. Bf5 {[%emt 0:01:57]} Bxf5 {[%emt 0:01:06]} 27. Qxf5 {[%emt 0:01:06]} Rc7 {[%emt 0:01:56]} 28. e3 {[%emt 0:02:01]} Kg8 {[%emt 0:02:11]} 29. Rfc4 {[%emt 0:02:23]} Rec8 {[%emt 0:00:45]} 30. Qd5 {[%emt 0:01:37]} a5 {[%emt 0:00:50]} 31. Qe5 {[%emt 0:01:10]} Qb5 {[%emt 0:00:54]} 32. Rg4 {[%emt 0:00:25]} 1-0

[Event "Hungarian Youth-ch I 2024"]
[Site "Szolnok"]
[Date "2024.04.04"]
[Round "6.11"]
[White "Lehocz, Jozsef Jr."]
[Black "Kovacs, Kristof"]
[Result "1/2-1/2"]
[ECO "A06"]
[WhiteElo "2143"]
[BlackElo "2000"]
[Annotator "RC"]
[PlyCount "42"]
[EventDate "2024.03.31"]
[EventType "swiss"]
[EventCountry "HUN"]
[SourceTitle "playchess.com"]
[Source "ChessBase"]
[SourceQuality "1"]
[TimeControl "5400+30"]

1. Nf3 {[%emt 0:00:13]} d5 {[%emt 0:00:15]} 2. e3 {[%emt 0:00:09]} Nf6 {[%emt 0:00:23]} 3. b3 {[%emt 0:00:38]} e6 {[%emt 0:00:49]} 4. Bb2 {[%emt 0:00:12]} Be7 {[%emt 0:00:16]} 5. c4 {[%emt 0:04:05]} a6 {[%emt 0:05:21]} 6. cxd5 {[%emt 0:13:59]} exd5 {[%emt 0:00:16]} 7. d4 {[%emt 0:00:19]} Bf5 {[%emt 0:01:41]} 8. Bd3 {[%emt 0:02:07]} Ne4 {[%emt 0:08:42]} 9. O-O {[%emt 0:04:05]} Nd7 {[%emt 0:02:57]} 10. Nc3 {[%emt 0:08:57]} Nxc3 {[%emt 0:02:36]} 11. Bxc3 {[%emt 0:00:09]} Bxd3 {[%emt 0:01:00]} 12. Qxd3 {[%emt 0:00:05]} O-O {[%emt 0:01:47]} 13. b4 {[%emt 0:11:02]} Nb6 {[%emt 0:09:14]} 14. Nd2 {[%emt 0:01:27]} Qd7 {[%emt 0:01:01]} 15. Qc2 {[%emt 0:01:15]} Qa4 {[%emt 0:10:13]} 16. Qb3 {[%emt 0:00:13]} Bd6 {[%emt 0:02:49]} 17. Rfc1 {[%emt 0:07:15]} Rfe8 {[%emt 0:03:34]} 18. g3 {[%emt 0:01:29]} Re7 {[%emt 0:02:10]} 19. Nf3 {[%emt 0:05:28]} Rae8 {[%emt 0:02:01]} 20. Kg2 {[%emt 0:02:03]} Qxb3 {[%emt 0:04:41]} 21. axb3 {[%emt 0:00:10]} c6 {[%emt 0:00:11]} 1/2-1/2

[Event "Hungarian Youth-ch I 2024"]
[Site "Szolnok"]
[Date "2024.04.04"]
[Round "6.12"]
[White "Karacsonyi, Bank"]
[Black "Feher, Botond"]
[Result "0-1"]
[ECO "B76"]
[WhiteElo "1940"]
[BlackElo "2018"]
[Annotator "NA RC"]
[PlyCount "62"]
[EventDate "2024.03.31"]
[EventType "swiss"]
[EventCountry "HUN"]
[SourceTitle "playchess.com"]
[Source "ChessBase"]
[SourceQuality "1"]
[TimeControl "5400+30"]

1. e4 {[%emt 0:00:10]} c5 {[%emt 0:00:10]} 2. Nf3 {[%emt 0:00:04]} d6 {[%emt 0:00:33]} 3. d4 {[%emt 0:01:04]} cxd4 {[%emt 0:00:28]} 4. Nxd4 {[%emt 0:00:05]} Nf6 {[%emt 0:00:11]} 5. Nc3 {[%emt 0:00:06]} g6 {[%emt 0:00:11]} 6. Be3 {[%emt 0:00:07]} Bg7 {[%emt 0:00:16]} 7. f3 {[%emt 0:00:12]} O-O {[%emt 0:00:09]} 8. Qd2 {[%emt 0:00:05]} Nc6 {[%emt 0:00:08]} 9. g4 {[%emt 0:00:38]} Bd7 {[%emt 0:00:31]} 10. O-O-O {[%emt 0:06:07]} Rc8 {[%emt 0:00:41]} 11. h4 {[%emt 0:02:39]} Ne5 {[%emt 0:00:35]} 12. h5 {[%emt 0:01:51]} Qa5 {[%emt 0:00:40]} 13. Kb1 {[%emt 0:01:27]} Nxf3 {[%emt 0:00:11]} 14. Nxf3 {[%emt 0:05:06]} Rxc3 {[%emt 0:00:18]} 15. Ng5 {[%emt 0:10:52]} Bxg4 {[%emt 0:16:52]} 16. Bh3 {[%emt 0:03:51]} Bxd1 {[%emt 0:26:59]} 17. Rxd1 {[%emt 0:01:24]} Rc5 {[%emt 0:02:52]} 18. Bxc5 {[%emt 0:01:53]} Qxc5 {[%emt 0:12:12]} 19. hxg6 {[%emt 0:06:14]} hxg6 {[%emt 0:00:15]} 20. Qg2 {[%emt 0:02:34]} Qe5 {[%emt 0:02:19]} 21. c3 {[%emt 0:01:14]} b5 {[%emt 0:07:33]} 22. Rd4 {[%emt 0:09:03]} Rb8 23. Nf3 {[%emt 0:00:30]} Qc5 24. Ng5 {[%emt 0:00:30]} b4 {[%emt 0:11:10]} 25. Ne6 {[%emt 0:06:23]} fxe6 {[%emt 0:04:41]} 26. Bxe6+ {[%emt 0:00:55]} Kh7 {[%emt 0:03:16]} 27. Bf7 {[%emt 0:04:46]} bxc3 {[%emt 0:05:39]} 28. Qxg6+ {[%emt 0:03:30]} Kh8 {[%emt 0:00:14]} 29. Rd3 {[%emt 0:05:45]} Rxb2+ {[%emt 0:00:23]} 30. Kc1 {[%emt 0:01:00]} Rb1+ {[%emt 0:01:41]} 31. Kxb1 {[%emt 0:00:11]} Qb5+ {[%emt 0:00:14]} 0-1